fUST/lending_fUST_20260401
["ID","MTS","AMOUNT","RATE_DAILY","PERIOD"]
[419166337,1774987840484,-1684.0,0.00025255,2]
[419166338,1774987840495,-1937.0,0.00025387,2]
[419166339,1774987840505,-16230.76,0.00025459,10]
[419166340,1774987840516,-19476.91,0.00025469,10]
[419166341,1774987840528,-23372.3,0.00025479,10]
[419166342,1774987840539,-28046.76,0.00025489,10]
[419166343,1774987840550,-500.0,0.00025499,2]
[419166344,1774987840561,-185.08914862,0.00025499,2]
[419166345,1774987840571,-500.0,0.00025499,2]
[419166346,1774987840582,-500.0,0.00025499,2]
[419166347,1774987840592,-500.0,0.00025499,2]
[419166348,1774987840603,-543.04112373,0.00025499,2]
[419166349,1774987840614,-227.42746321,0.00025499,2]
[419166350,1774987840625,-268.32603946,0.00025499,2]
[419166351,1774987840635,-213.28127012,0.00025499,2]
[419166352,1774987840645,-226.07305414,0.00025499,2]
[419166354,1774987840655,-264.17218607,0.00025499,2]
[419166356,1774987840666,-244.83270013,0.00025499,2]
[419166358,1774987840677,-187.97896263,0.00025516,2]
[419166359,1774987840687,-194.21172263,0.00025516,2]
[419166360,1774987840697,-288.0,0.00025523,2]
[419166361,1774987840707,-1684.0,0.00025578,2]
[419166362,1774987840720,-500.0,0.00025626,3]
[419166363,1774987840731,-500.0,0.00025626,3]
[419166364,1774987840743,-500.0,0.00025626,3]
[419166365,1774987840754,-507.75152326,0.00025626,3]
[419166366,1774987840764,-500.0,0.00025673,2]
[419166367,1774987840775,-500.0,0.00025673,2]
[419166368,1774987840786,-500.0,0.00025673,2]
[419166369,1774987840796,-500.0,0.00025673,2]
[419166370,1774987840807,-500.0,0.00025673,2]
[419166371,1774987840817,-500.0,0.00025673,2]
[419166372,1774987840828,-2579.17784983,0.00025686,2]
[419166373,1774987840839,-500.0,0.00025734,2]
[419166374,1774987840851,-1684.0,0.00025761,2]
[419166375,1774987840861,-500.0,0.00025773,2]
[419166376,1774987840874,-500.0,0.00025773,2]
[419166377,1774987840886,-500.0,0.00025773,2]
[419166378,1774987840896,-500.0,0.00025773,2]
[419166379,1774987840907,-500.0,0.00025773,2]
[419166380,1774987840919,-357.64855278,0.00025773,2]
[419166381,1774987841040,-500.0,0.00025773,2]
[419166382,1774987841052,-500.0,0.00025773,2]
[419166383,1774987841063,-500.0,0.00025773,2]
[419166384,1774987841073,-500.0,0.00025773,2]
[419166385,1774987841083,-500.0,0.00025773,2]
[419166386,1774987841093,-500.0,0.00025773,2]
[419166387,1774987841104,-500.0,0.00025773,2]
[419166389,1774987841114,-500.0,0.00025773,2]
[419166391,1774987841125,-500.0,0.00025773,2]
[419166393,1774987841135,-500.0,0.00025773,2]
[419166395,1774987841146,-500.0,0.00025773,2]
[419166397,1774987841155,-180.74731433,0.00025789,2]
[419166399,1774987841165,-235.3825171,0.00025789,2]
[419166401,1774987841175,-200.0,0.0002579,2]
[419166403,1774987841185,-1937.0,0.00025792,2]
[419166405,1774987841196,-151.0,0.000258,19]
[419166407,1774987841206,-151.0,0.000258,11]
[419166409,1774987841216,-151.0,0.000258,10]
[419166411,1774987841226,-151.0,0.000258,12]
[419166412,1774987841236,-151.0,0.000258,12]
[419166415,1774987841247,-151.0,0.000258,16]
[419166416,1774987841258,-151.0,0.000258,14]
[419166417,1774987841269,-151.0,0.000258,19]
[419166418,1774987841279,-151.0,0.000258,17]
[419166419,1774987841291,-151.0,0.000258,12]
[419166420,1774987841303,-151.0,0.000258,15]
[419166421,1774987841315,-151.0,0.000258,20]
[419166422,1774987841326,-151.0,0.000258,13]
[419166423,1774987841337,-151.0,0.000258,19]
[419166424,1774987841348,-1938.0,0.00025839,7]
[419166425,1774987841358,-1938.0,0.00025846,2]
[419166426,1774987841368,-342.787992,0.0002587,14]
[419166427,1774987841379,-160.0,0.0002587,14]
[419166428,1774987841390,-184.214045,0.0002587,14]
[419166429,1774987841401,-208.428091,0.0002587,14]
[419166430,1774987841410,-350.198671,0.0002587,14]
[419166431,1774987841420,-160.0,0.0002587,14]
[419166432,1774987841430,-187.203863,0.0002587,14]
[419166433,1774987841440,-214.407726,0.0002587,14]
[419166434,1774987841450,-500.0,0.00025873,2]
[419166435,1774987841461,-500.0,0.00025873,2]
[419166436,1774987841472,-500.0,0.00025873,2]
[419166437,1774987841482,-570.14820796,0.00025873,2]
[419166438,1774987841491,-500.0,0.00025873,2]
[419166439,1774987841503,-541.028858,0.00025873,2]
[419166440,1774987841513,-500.0,0.00025873,2]
[419166441,1774987841523,-1684.0,0.00025883,7]
[419166442,1774987841533,-1684.0,0.00025892,7]
[419166443,1774987841543,-270.83333333,0.00025892,7]
[419166444,1774987841553,-627195.54277141,0.000259,3]
[419166445,1774987841564,-270.83333333,0.000259,3]
[419166446,1774987841575,-2012.78,0.000259,3]
[419166447,1774987841585,-151.0,0.000259,2]
[419166448,1774987841596,-151.0,0.000259,2]
[419166449,1774987841607,-151.0,0.000259,2]
[419166450,1774987841617,-151.0,0.000259,2]
[419166451,1774987841627,-151.0,0.000259,2]
[419166452,1774987841638,-151.0,0.000259,2]
[419166453,1774987841648,-151.0,0.000259,2]
[419166454,1774987841659,-151.0,0.000259,2]
[419166455,1774987841669,-283.303844,0.000259,2]
[419166456,1774987841679,-151.0,0.000259,2]
[419166457,1774987841689,-425.864,0.000259,11]
[419166458,1774987841699,-250.0,0.000259,10]
[419166459,1774987841709,-200.0,0.00025953,2]
[419166460,1774987841719,-1937.0,0.00025954,7]
[419166461,1774987841728,-1684.0,0.00025966,2]
[419166462,1774987841739,-160.7610951,0.00025973,2]
[419166463,1774987841749,-500.0,0.00025973,2]
[419166464,1774987841759,-500.0,0.00025973,2]
[419166465,1774987841769,-575.09922602,0.00025973,2]
[419166466,1774987841779,-500.0,0.00025973,2]
[419166467,1774987841789,-40252.34313204,0.00026,10]
[419166468,1774987841800,-653.91927236,0.00026,2]
[419166469,1774987841810,-200.0,0.00026,3]
[419166470,1774987841821,-250.0,0.00026,10]
[419166471,1774987841831,-324.8899299,0.00026078,2]
[419166472,1774987841841,-345.5536134,0.00026078,2]
[419166473,1774987841852,-195.9392468,0.00026078,2]
[419166474,1774987841862,-250.0,0.000261,10]
[419166475,1774987841872,-250.0,0.000262,10]
[419166476,1774987841882,-1000.0,0.00026221,2]
[419166477,1774987841893,-1000.0,0.00026221,2]
[419166478,1774987841902,-1000.0,0.00026221,2]
[419166479,1774987841913,-1684.0,0.0002623,7]
[419166480,1774987841923,-287.26886461,0.00026234,2]
[419166481,1774987841933,-250.0,0.000263,10]
[419166482,1774987841944,-151.0,0.000263,11]
[419166483,1774987841954,-1684.0,0.00026315,2]
[419166484,1774987841964,-1000.0,0.00026321,2]
[419166485,1774987841974,-505.25634317,0.00026321,2]
[419166487,1774987841984,-1000.0,0.00026321,2]
[419166489,1774987841994,-1000.0,0.00026321,2]
[419166491,1774987842005,-1001.29397758,0.00026321,2]
[419166493,1774987842015,-1000.0,0.00026321,2]
[419166495,1774987842025,-1000.0,0.00026321,2]
[419166497,1774987842034,-1000.0,0.00026321,2]
[419166499,1774987842044,-966.52048942,0.00026321,2]
[419166501,1774987842054,-1000.0,0.00026321,2]
[419166503,1774987842064,-1000.0,0.00026321,2]
[419166505,1774987842073,-359.22763115,0.00026321,2]
[419166507,1774987842083,-1082.36409427,0.00026321,2]
[419166509,1774987842093,-1000.0,0.00026321,2]
[419166511,1774987842103,-1000.0,0.00026321,2]
[419166512,1774987842113,-163.0,0.00026376,3]
[419166514,1774987842123,-5184.54325545,0.00026398,95]
[419166516,1774987842132,-151.0,0.00026398,2]
[419166517,1774987842143,-151.0,0.00026398,2]
[419166518,1774987842153,-1333.372302,0.00026398,2]
[419166519,1774987842163,-1333.372302,0.00026398,2]
[419166520,1774987842173,-1333.372302,0.00026398,2]
[419166521,1774987842185,-1333.372302,0.00026398,2]
[419166522,1774987842195,-269.386714,0.00026398,2]
[419166523,1774987842205,-269.386714,0.00026398,2]
[419166524,1774987842215,-269.386714,0.00026398,2]
[419166525,1774987842225,-269.386714,0.00026398,2]
[419166526,1774987842235,-271.131774,0.00026398,2]
[419166527,1774987842245,-271.131774,0.00026398,2]
[419166528,1774987842254,-271.131774,0.00026398,2]
[419166529,1774987842264,-211.845966,0.00026398,2]
[419166530,1774987842274,-271.131774,0.00026398,2]
[419166531,1774987842284,-211.845966,0.00026398,2]
[419166532,1774987842294,-211.845966,0.00026398,2]
[419166533,1774987842304,-211.845966,0.00026398,2]
[419166534,1774987842314,-968.252534,0.00026398,2]
[419166535,1774987842324,-968.252534,0.00026398,2]
[419166536,1774987842333,-968.252534,0.00026398,2]
[419166537,1774987842343,-968.252534,0.00026398,2]
[419166538,1774987842353,-388.785295,0.00026398,2]
[419166539,1774987842363,-388.785295,0.00026398,2]
[419166540,1774987842373,-388.785295,0.00026398,2]
[419166541,1774987842382,-388.785295,0.00026398,2]
[419166542,1774987842393,-3004.057884,0.00026398,2]
[419166543,1774987842403,-3004.057884,0.00026398,2]
[419166544,1774987842413,-2685.986691,0.00026398,2]
[419166545,1774987842422,-2685.986691,0.00026398,2]
[419166546,1774987842432,-3004.057884,0.00026398,2]
[419166547,1774987842442,-2685.986691,0.00026398,2]
[419166548,1774987842454,-3004.057884,0.00026398,2]
[419166549,1774987842464,-2685.986691,0.00026398,2]
[419166550,1774987842473,-427.911581,0.00026398,2]
[419166551,1774987842483,-427.911581,0.00026398,2]
[419166552,1774987842495,-268.352448,0.00026398,2]
[419166553,1774987842506,-427.911581,0.00026398,2]
[419166554,1774987842517,-427.911581,0.00026398,2]
[419166555,1774987842528,-151.0,0.00026398,2]
[419166556,1774987842538,-151.0,0.00026398,2]
[419166557,1774987842547,-151.0,0.00026398,2]
[419166558,1774987842556,-151.0,0.00026398,2]
[419166559,1774987842566,-363.677586,0.00026398,2]
[419166560,1774987842575,-363.677586,0.00026398,2]
[419166561,1774987842584,-363.677586,0.00026398,2]
[419166562,1774987842594,-151.0,0.00026398,2]
[419166563,1774987842604,-363.677586,0.00026398,2]
[419166564,1774987842613,-333.022611,0.00026398,2]
[419166565,1774987842622,-333.022611,0.00026398,2]
[419166566,1774987842632,-333.022611,0.00026398,2]
[419166567,1774987842642,-333.022611,0.00026398,2]
[419166568,1774987842651,-163.459209,0.00026398,2]
[419166569,1774987842661,-209.454916,0.00026398,2]
[419166570,1774987842670,-209.454916,0.00026398,2]
[419166571,1774987842679,-209.454916,0.00026398,2]
[419166572,1774987842689,-1071.580583,0.00026398,2]
[419166573,1774987842699,-275.877744,0.00026398,2]
[419166574,1774987842709,-209.454916,0.00026398,2]
[419166575,1774987842718,-2861.370514,0.00026398,2]
[419166576,1774987842727,-151.0,0.00026398,2]
[419166577,1774987842737,-151.0,0.00026398,2]
[419166578,1774987842746,-2861.370514,0.00026398,2]
[419166579,1774987842756,-151.0,0.00026398,2]
[419166580,1774987842765,-2861.370514,0.00026398,2]
[419166581,1774987842774,-291.11017,0.00026398,2]
[419166582,1774987842783,-2861.370514,0.00026398,2]
[419166584,1774987842793,-151.0,0.00026398,2]
[419166585,1774987842802,-1071.580583,0.00026398,2]
[419166586,1774987842812,-1071.580583,0.00026398,2]
[419166587,1774987842821,-1071.580583,0.00026398,2]
[419166588,1774987842830,-162.537673,0.00026398,2]
[419166589,1774987842841,-151.0,0.00026398,2]
[419166590,1774987842850,-151.0,0.00026398,2]
[419166591,1774987842860,-151.0,0.00026398,2]
[419166592,1774987842869,-151.0,0.00026398,2]
[419166593,1774987842879,-4108.258141,0.00026398,2]
[419166594,1774987842889,-354.114681,0.000264,10]
[419166595,1774987842899,-151.0,0.000264,12]
[419166596,1774987842909,-250.0,0.00026421,2]
[419166597,1774987842918,-1000.0,0.00026421,2]
[419166598,1774987842928,-1000.0,0.00026421,2]
[419166599,1774987842937,-1000.0,0.00026421,2]
[419166600,1774987842948,-250.0,0.00026421,2]
[419166601,1774987842959,-1000.0,0.00026421,2]
[419166602,1774987842969,-1000.0,0.00026421,2]
[419166603,1774987842979,-1684.0,0.0002645,2]
[419166604,1774987842988,-1684.0,0.00026497,7]
[419166606,1774987842998,-200.0,0.000265,12]
[419166607,1774987843008,-151.0,0.000265,2]
[419166608,1774987843017,-151.0,0.000265,2]
[419166609,1774987843027,-151.0,0.000265,2]
[419166611,1774987843038,-151.0,0.000265,2]
[419166612,1774987843048,-192.184991,0.000265,2]
[419166613,1774987843059,-151.0,0.000265,2]
[419166614,1774987843069,-151.0,0.000265,10]
[419166615,1774987843079,-250.0,0.00026521,2]
[419166616,1774987843089,-300.0,0.00026521,2]
[419166617,1774987843099,-1000.0,0.00026521,2]
[419166618,1774987843109,-250.0,0.00026521,2]
[419166620,1774987843119,-1000.0,0.00026521,2]
[419166621,1774987843129,-1684.0,0.00026523,2]
[419166622,1774987843140,-1684.0,0.00026546,2]
[419166623,1774987843150,-270.83333333,0.000267,3]
[419166624,1774987843160,-151.0,0.000267,13]
[419166625,1774987843170,-1937.0,0.00026765,2]
[419166626,1774987843181,-1500.0,0.00026768,2]
[419166627,1774987843191,-1500.0,0.00026768,2]
[419166629,1774987843201,-1500.0,0.00026768,2]
[419166631,1774987843210,-254.0,0.0002677,10]
[419166632,1774987843221,-500.0,0.000268,10]
[419166634,1774987843231,-500.0,0.000268,10]
[419166635,1774987843241,-581.85919583,0.00026868,2]
[419166636,1774987843251,-1500.0,0.00026868,2]
[419166637,1774987843261,-500.0,0.00026868,2]
[419166638,1774987843272,-1500.0,0.00026868,2]
[419166639,1774987843281,-500.0,0.00026868,2]
[419166640,1774987843291,-500.0,0.00026868,2]
[419166641,1774987843301,-500.93275418,0.00026868,2]
[419166642,1774987843311,-349.90486997,0.00026868,2]
[419166643,1774987843321,-369.94980388,0.00026868,2]
[419166645,1774987843331,-500.0,0.00026868,2]
[419166647,1774987843341,-4154.16576758,0.000269,2]
[419166648,1774987843351,-250.0,0.00026921,2]
[419166649,1774987843451,-350.0,0.00026968,2]
[419166650,1774987843462,-1500.0,0.00026968,2]
[419166651,1774987843472,-1500.0,0.00026968,2]
[419166652,1774987843482,-1500.0,0.00026968,2]
[419166653,1774987843492,-407.26336269,0.00026968,2]
[419166654,1774987843502,-498.23599929,0.00026968,2]
[419166655,1774987843512,-501.27108711,0.00026968,2]
[419166656,1774987843523,-151.0,0.00027,11]
[419166657,1774987843532,-350.0,0.00027068,2]
[419166658,1774987843542,-450.0,0.00027068,2]
[419166659,1774987843553,-1500.0,0.00027068,2]
[419166660,1774987843562,-1500.0,0.00027068,2]
[419166661,1774987843573,-350.0,0.00027068,2]
[419166662,1774987843583,-500.0,0.00027088,30]
[419166663,1774987843592,-798.0385902,0.00027088,30]
[419166664,1774987843601,-962.5206252,0.00027088,30]
[419166666,1774987843611,-500.0,0.00027088,30]
[419166667,1774987843621,-602.9346513,0.00027088,30]
[419166668,1774987843630,-394.4681162,0.00027088,30]
[419166669,1774987843641,-151.0,0.000271,14]
[419166670,1774987843651,-720.0,0.00027184,30]
[419166671,1774987843662,-159.0,0.000273,30]
[419166672,1774987843672,-151.0,0.000273,19]
[419166673,1774987843681,-158.695771,0.00027302,2]
[419166674,1774987843691,-2000.0,0.00027316,2]
[419166675,1774987843701,-1967.78875545,0.00027344,2]
[419166676,1774987843710,-158.9223941,0.00027397,2]
[419166677,1774987843720,-1704.81384246,0.00027416,5]
[419166678,1774987843730,-2000.0,0.00027416,5]
[419166679,1774987843740,-888644.42431306,0.00027444,2]
[419166680,1774987843990,-1329.185089,0.000249,2]
[419166681,1774987844000,-1000.0,0.000254,2]
[419166682,1774987844009,-439.0,0.00025852,2]
[419166683,1774987844019,-1000.0,0.000259,2]
[419166684,1774987844029,-4108.258141,0.00026398,2]
[419166685,1774987844039,-4108.258141,0.00026398,2]
[419166686,1774987844049,-39229.268629,0.00027444,2]
[419166708,1774987846449,-1042.12160456,0.00026398,2]
[419166710,1774987846461,-3066.13653644,0.00026398,2]
[419166712,1774987846471,-8287.741859,0.00027444,2]
[419166733,1774987846664,-413.28111566,0.00027444,2]
[419166735,1774987846676,-2329.18508868,0.00027444,2]
[419166736,1774987858123,5000.0,0.00032876,120]
[419166779,1774988612768,500.0,0.0003287,120]
[419166838,1774989032370,-1000.0,0.00013699,2]
[419166839,1774989032380,-500.0,0.0001484,2]
[419166840,1774989032390,-500.0,0.00015621,2]
[419166841,1774989032400,-173.11393559,0.00016443,2]
[419166842,1774989032413,-326.88606441,0.00016443,2]
[419166843,1774989032423,-500.0,0.00017309,2]
[419166844,1774989032433,-500.0,0.0001822,2]
[419166845,1774989032444,-500.0,0.00019179,2]
[419166846,1774989032454,-500.0,0.00020188,2]
[419166847,1774989032464,-500.0,0.00021197,2]
[419166848,1774989032473,-500.0,0.00022257,2]
[419166849,1774989032482,-914.27623442,0.00022938,30]
[419166851,1774989032493,-85.72376558,0.00022938,30]
[419166852,1774989032502,-1371.613571,0.00022962,2]
[419166853,1774989032511,-500.0,0.0002337,2]
[419166854,1774989032520,-270.83333333,0.00024429,2]
[419166855,1774989032530,-500.0,0.00024539,2]
[419166856,1774989032539,-2284.35875134,0.00024789,2]
[419166857,1774989032559,-7715.64124866,0.00024789,2]
[419166858,1774989032568,-800.0,0.00025679,2]
[419166859,1774989032578,-500.0,0.00025766,2]
[419166860,1774989032587,-15146.4,0.00025814,10]
[419166861,1774989032596,-415.53848215,0.00025823,2]
[419166862,1774989032606,-186.07546792,0.00025823,2]
[419166863,1774989032615,-500.0,0.00025823,2]
[419166864,1774989032625,-200.27319431,0.00025823,2]
[419166865,1774989032635,-500.0,0.00025823,2]
[419166866,1774989032644,-500.0,0.00025823,2]
[419166867,1774989032654,-500.0,0.00025823,2]
[419166868,1774989032663,-55007.52999652,0.00025824,2]
[419166869,1774989032674,-490.57899851,0.00025824,2]
[419166883,1774989041168,-13879.11,0.00025814,10]
[419166884,1774989041178,-500.0,0.00025823,2]
[419166885,1774989041187,-499.79333429,0.00025823,2]
[419166886,1774989041197,-579.84144298,0.00025823,2]
[419166887,1774989041207,-1643.75522273,0.00025824,2]
[419166893,1774989041653,-1468.4,0.00025824,2]
[419166894,1774989041665,-604.0,0.00025824,2]
[419166908,1774989043885,-250.820863,0.00025824,2]
[419166927,1774989046753,-12751.63249222,0.00025824,2]
[419166930,1774989047025,-105495.09127718,0.00025824,2]
[419166931,1774989134250,5000.0,0.00032876,120]
[419167106,1774990232491,-1000.0,0.00013699,2]
[419167107,1774990232501,-151.0,0.0002,2]
[419167108,1774990232511,-2409.14685483,0.00022197,2]
[419167109,1774990232520,-158.695771,0.00024411,2]
[419167110,1774990232529,-2409.14685483,0.00024494,2]
[419167111,1774990232540,-270.83333333,0.00024862,2]
[419167112,1774990232549,-8101.68472543,0.00025,2]
[419167113,1774990232560,-517.75085583,0.00025,2]
[419167114,1774990232573,-1380.56441874,0.00025,2]
[419167115,1774990232582,-378.783,0.00025209,9]
[419167116,1774990232592,-824.80597736,0.00025612,10]
[419167117,1774990232603,-4482.24914417,0.00025612,10]
[419167118,1774990232614,-853.624,0.00025612,10]
[419167119,1774990232625,-4091.09591491,0.00025612,10]
[419167126,1774990238959,-1314.15496356,0.00025612,10]
[419167127,1774990238969,-21768.89270632,0.00025612,2]
[419167128,1774990239014,-9968.04684672,0.00025612,2]
[419167132,1774990241425,-9638.27,0.00025612,10]
[419167133,1774990241435,-733.50810305,0.00025612,2]
[419167145,1774990244478,-4299.4799978,0.00025612,2]
[419167150,1774990247207,-8380.12123018,0.00025612,2]
[419167151,1774990247217,-500.0,0.00025621,2]
[419167152,1774990247226,-290.87693751,0.00025621,2]
[419167153,1774990247237,-390.19123602,0.00025621,2]
[419167154,1774990247247,-500.0,0.00025621,2]
[419167155,1774990247258,-500.0,0.00025621,2]
[419167156,1774990247267,-136629.3523485,0.00025622,2]
[419167157,1774990251813,5000.0,0.00032876,120]
[419167168,1774990585080,-792.0,0.000136,2]
[419167170,1774990925364,-4890.51466124,0.00013064,2]
[419167171,1774990954519,-109.48533876,0.00013064,2]
[419167269,1774991431756,-283.624,5e-05,2]
[419167270,1774991431807,-284.79628156,5e-05,2]
[419167342,1774991437974,-431.87462275,5e-05,2]
[419167343,1774991437985,-893.84771855,5e-05,2]
[419167344,1774991437995,-5000.0,7.574e-05,2]
[419167345,1774991438005,-331.21646785,7.65e-05,2]
[419167346,1774991438016,-465.24338887,8.48e-05,2]
[419167347,1774991438027,-186.396651,0.0001,2]
[419167348,1774991438036,-5000.0,0.00012454,2]
[419167349,1774991438046,-11412.83246757,0.000125,2]
[419167350,1774991438056,-1000.0,0.00013699,2]
[419167351,1774991438065,-215.04,0.000137,2]
[419167352,1774991438075,-112517.96362157,0.00017,2]
[419167353,1774991438085,-1721.85175823,0.00017572,2]
[419167354,1774991438097,-1320.37972324,0.00017572,2]
[419167367,1774991443176,-2700.0000006,0.00017397,2]
[419167368,1774991443229,-2299.9999994,0.00017397,2]
[419167369,1774991443239,-10273.61627085,0.00017572,2]
[419167370,1774991443348,-0.01438493,0.00017572,2]
[419167378,1774991446158,-2064.51146275,0.00017572,2]
[419167379,1774991446169,-4218.04947438,0.00018,2]
[419167380,1774991446383,-5317.06353294,0.00018,2]
[419167382,1774991449812,422.2120955,0.00032876,120]
[419167392,1774992314212,500.0,0.0003287,120]
[419167551,1774992632279,-1000.0,0.00013699,2]
[419167553,1774992632290,-580.26245559,0.00018,2]
[419167555,1774992632301,-3093.05945852,0.00018,2]
[419167560,1774992632342,-339.44,0.00018,2]
[419167567,1774992632402,-5608.67107354,0.00018,2]
[419167569,1774992632413,-5012.47619491,0.00018,2]
[419167571,1774992632424,-1000.0,0.00018268,2]
[419167573,1774992632434,-500.0,0.00018938,2]
[419167575,1774992632444,-158.695771,0.0002091,2]
[419167577,1774992632454,-270.83333333,0.00023,2]
[419167579,1774992632464,-1371.613571,0.00023427,2]
[419167581,1774992632474,-369.221729,0.00023621,2]
[419167583,1774992632484,-369.221729,0.00023621,2]
[419167584,1774992632494,-369.221729,0.00023621,2]
[419167586,1774992632504,-369.221729,0.00023621,2]
[419167588,1774992632514,-151.0,0.00023621,2]
[419167590,1774992632524,-9045.88045462,0.00023621,2]
[419167664,1774992638115,-151.0,0.00023621,2]
[419167665,1774992638124,-151.0,0.00023621,2]
[419167666,1774992638134,-120.2120955,0.00023621,2]
[419167667,1774992638224,-30.7879045,0.00023621,2]
[419167668,1774992638233,-40954.11954538,0.00023621,2]
[419167669,1774992638242,-241.976817,0.00023621,2]
[419167670,1774992638252,-196.2208234,0.00023621,2]
[419167671,1774992638264,-151.0,0.000246,2]
[419167672,1774992638274,-243.921141,0.000246,2]
[419167673,1774992638284,-246.235412,0.000246,2]
[419167674,1774992638294,-246.235412,0.000246,2]
[419167675,1774992638303,-246.235412,0.000246,2]
[419167676,1774992638313,-246.235412,0.000246,2]
[419167677,1774992638323,-575.9482896,0.00024616,2]
[419167678,1774992638332,-440.0,0.00025292,2]
[419167679,1774992638342,-363.923,0.00025292,2]
[419167680,1774992638351,-184.176,0.00025292,2]
[419167681,1774992638361,-200.0,0.00025573,2]
[419167682,1774992638372,-500.0,0.00025673,2]
[419167683,1774992638382,-161.84694743,0.00025673,2]
[419167684,1774992638392,-500.0,0.00025673,2]
[419167685,1774992638404,-246.235412,0.00025673,2]
[419167686,1774992638415,-246.235412,0.00025673,2]
[419167687,1774992638426,-246.235412,0.00025673,2]
[419167688,1774992638437,-246.235412,0.00025673,2]
[419167689,1774992638448,-151.0,0.00025673,2]
[419167690,1774992638458,-152.34747,0.00025673,2]
[419167691,1774992638468,-151.0,0.00025673,2]
[419167692,1774992638478,-2029.30443171,0.00025686,10]
[419167702,1774992640786,-152.738306,0.00023621,2]
[419167703,1774992640796,-6960.02111348,0.00025686,10]
[419167710,1774992643341,-1407.01445481,0.00025686,10]
[419167711,1774992643350,-500.0,0.00025695,2]
[419167712,1774992643360,-87.80325138,0.00025695,2]
[419167713,1774992643560,-480.54696336,0.00025695,2]
[419167714,1774992643569,-105.42963913,0.00025695,2]
[419167715,1774992643581,-394.57036087,0.00025695,2]
[419167716,1774992643591,-500.0,0.00025695,2]
[419167717,1774992643601,-500.0,0.00025695,2]
[419167718,1774992643611,-500.0,0.00025695,2]
[419167719,1774992643621,-500.0,0.00025695,2]
[419167720,1774992643631,-500.0,0.00025695,2]
[419167721,1774992643641,-500.0,0.00025695,2]
[419167722,1774992643650,-500.0,0.00025695,2]
[419167723,1774992643660,-500.0,0.00025695,2]
[419167724,1774992643670,-500.0,0.00025695,2]
[419167725,1774992643680,-500.0,0.00025695,2]
[419167726,1774992643690,-500.0,0.00025695,2]
[419167727,1774992643699,-500.0,0.00025695,2]
[419167728,1774992643709,-500.0,0.00025695,2]
[419167729,1774992643719,-480.25896578,0.00025695,2]
[419167730,1774992643731,-19.74103422,0.00025695,2]
[419167731,1774992643740,-481.24380095,0.00025695,2]
[419167732,1774992643751,-500.0,0.00025695,2]
[419167733,1774992643761,-500.0,0.00025695,2]
[419167734,1774992643771,-500.0,0.00025695,2]
[419167735,1774992643781,-500.0,0.00025695,2]
[419167736,1774992643791,-500.0,0.00025695,2]
[419167737,1774992643801,-500.0,0.00025695,2]
[419167738,1774992643811,-500.0,0.00025695,2]
[419167739,1774992643821,-500.0,0.00025695,2]
[419167740,1774992643831,-500.0,0.00025695,2]
[419167741,1774992643840,-500.0,0.00025695,2]
[419167742,1774992643850,-386.87066067,0.00025695,2]
[419167743,1774992643859,-89739.29770357,0.00025696,2]
[419167744,1774992643871,-246.235412,0.00025696,2]
[419167745,1774992643880,-246.235412,0.00025696,2]
[419167746,1774992643890,-246.235412,0.00025696,2]
[419167747,1774992643901,-246.235412,0.00025696,2]
[419167748,1774992643911,-246.235412,0.00025696,2]
[419167749,1774992643920,-246.235412,0.00025696,2]